Workbook

Sheet Etagements
B2: Copyright Olivier ADLER 2024
B3: MotorSport@StoneRecording.art | F3: Pneus
F4: diamètre (pouces) | H4: 16
B5: Les valeurs en vert sont modifiables | F5: largeur (mm) | H5: 275
B6: Nombre de vitesses (n) | D6: 6 | F6: hauteur de flancs (% de largeur) | H6: 70
B7: Rapport de 1ère vitesse (R1) | D7: 4.2 | F7: Coefficient d'écrasement | H7: 0.97
B8: Rapport de dernière vitesse (Rn) | D8: 0.75 | F8: Rayon effectif calculéen m | H8: =H10*H7/2/1000 -> 0.383829
B9: Rapport de pont | D9: 4.11 | F9: hauteur de flanc calculée (mm) | H9: =H5*H6/100 -> 192.5
B10: Rapport de transfert long | D10: 1 | F10: diamètre total calculé (mm) | H10: =H4*25.4+2*H9 -> 791.4
B11: Rapport de transfert court | D11: 2.49 | F11: circonférence calculée (m) | H11: =PI()*H10/1000 -> 2.486256426
B12: Coefficient logarithmique | D12: 0.1
B14: Coefficient de progression linéaire calculé (r) | D14: =(D8/D7)^(1/(D6-1)) -> 0.7085367723
G15: Couple Moteur N.m
B16: Résistance aérodynamique | H16: RPM
G17: 79 | H17: 750
G18: 106 | H18: 1000
C19: vitesse du véhicule en m/s | G19: 135 | H19: 1250
C20: surface frontale en m² | D20: 2.2 | G20: 162 | H20: 1500
C21: coefficient de traînée | D21: 0.32 | G21: 190 | H21: 1750
C22: densitée de l'air en kg/m3 | D22: 1.2 | G22: 220 | H22: 2000
G23: 250 | H23: 2250
B24: Résistance au roulement | G24: 270 | H24: 2500
G25: 280 | H25: 2750
G26: 275 | H26: 3000
C27: masse du véhicule en kg | D27: 1600 | G27: 260 | H27: 3250
C28: coefficient de roulement | D28: 0.01 | G28: 245 | H28: 3500
C29: pesanteur en m/s² | D29: 9.81 | G29: 222 | H29: 3750
B30: Résistance au roulement calculée en N | D30: =D28*D27*D29 -> 156.96 | G30: 198 | H30: 4000
G31: 140 | H31: 4700
G32: 0 | H32: =H31+1 -> 4701
J39: Rapports longs progression linéaire | N39: Rapports longs progression logarithmique | S39: Rapports courts progression linéaire | W39: Rapports courts progression logarithmique
J40: Vitesse | K40: Linéaire | L40: Différences | N40: Vitesse | O40: Log | P40: Différences | S40: Vitesse | T40: Linéaire | U40: Différences | W40: Vitesse | X40: Log | Y40: Différences
J42: 1 | K42: =$D$7*$D$10*$D$14^(J42-1) -> 4.2 | N42: 1 | O42: =$D$10*$D$7*($D$8/$D$7)^(LOG10(($N42-1)*($D$12)+1)/LOG10(($D$6-1)*$D$12+1)) -> 4.2 | S42: 1 | T42: =$D$7*$D$11*$D$14^(S42-1) -> 10.458 | W42: 1 | X42: =IF($D$6-W42>=0,$D$11*$D$7*($D$8/$D$7)^(LOG10((W42-1)*($D$12)+1)/LOG10(($D$6-1)*$D$12+1)),0) -> 10.458 | AA42: Progression Linéaire
J43: 2 | K43: =IF($D$6-J43>=0,$D$7*$D$10*$D$14^(J43-1),0) -> 2.975854444 | L43: =IF($D$6-J43>=0,(K43/K42)-1,0) -> -0.2914632277 | N43: 2 | O43: =IF($D$6-N43>=0,$D$10*$D$7*($D$8/$D$7)^(LOG10(($N43-1)*($D$12)+1)/LOG10(($D$6-1)*$D$12+1)),0) -> 2.801414356 | P43: =IF($D$6-N43>=0,(O43/O42)-1,0) -> -0.3329965819 | S43: 2 | T43: =IF($D$6-S43>=0,$D$7*$D$11*$D$14^(S43-1),0) -> 7.409877565 | U43: =IF($D$6-S43>=0,(T43/T42)-1,0) -> -0.2914632277 | W43: 2 | X43: 6.975521746 | Y43: =IF($D$6-W43>=0,(X43/X42)-1,0) -> -0.3329965819 | AA43: Calcul du coefficient de progression linéraire
J44: 3 | K44: 2.108502302 | L44: -0.2914632277 | N44: 3 | O44: 1.935614414 | P44: -0.3090581512 | S44: 3 | T44: 5.250170733 | U44: -0.2914632277 | W44: 3 | X44: 4.819679892 | Y44: -0.3090581512
J45: 4 | K45: 1.493951416 | L45: -0.2914632277 | N45: 4 | O45: 1.377587975 | P45: -0.2882942156 | S45: 4 | T45: 3.719939025 | U45: -0.2914632277 | W45: 4 | X45: 3.430194058 | Y45: -0.2882942156
J46: 5 | K46: 1.058519514 | L46: -0.2914632277 | N46: 5 | O46: 1.005474269 | P46: -0.2701197401 | S46: 5 | T46: 2.63571359 | U46: -0.2914632277 | W46: 5 | X46: 2.503630931 | Y46: -0.2701197401
J47: 6 | K47: 0.75 | L47: -0.2914632277 | N47: 6 | O47: 0.75 | P47: -0.2540833486 | S47: 6 | T47: 1.8675 | U47: -0.2914632277 | W47: 6 | X47: 1.8675 | Y47: -0.2540833486
J48: 7 | K48: 0 | L48: 0 | N48: 7 | O48: 0 | P48: 0 | S48: 7 | T48: 0 | U48: 0 | W48: 7 | X48: 0 | Y48: 0 | AA48: Calcul de chaque rapport en progression linéraire
J49: 8 | K49: 0 | L49: 0 | N49: 8 | O49: 0 | P49: 0 | S49: 8 | T49: 0 | U49: 0 | W49: 8 | X49: 0 | Y49: 0
J50: 9 | K50: 0 | L50: 0 | N50: 9 | O50: 0 | P50: 0 | S50: 9 | T50: 0 | U50: 0 | W50: 9 | X50: 0 | Y50: 0
J51: 10 | K51: 0 | L51: 0 | N51: 10 | O51: 0 | P51: 0 | S51: 10 | T51: 0 | U51: 0 | W51: 10 | X51: 0 | Y51: 0
J52: 11 | K52: 0 | L52: 0 | N52: 11 | O52: 0 | P52: 0 | S52: 11 | T52: 0 | U52: 0 | W52: 11 | X52: 0 | Y52: 0
J53: 12 | K53: 0 | L53: 0 | N53: 12 | O53: 0 | P53: 0 | S53: 12 | T53: 0 | U53: 0 | W53: 12 | X53: 0 | Y53: 0
J54: 13 | K54: 0 | L54: 0 | N54: 13 | O54: 0 | P54: 0 | S54: 13 | T54: 0 | U54: 0 | W54: 13 | X54: 0 | Y54: 0 | AA54: Progression Logarithmique
J55: 14 | K55: 0 | L55: 0 | N55: 14 | O55: 0 | P55: 0 | S55: 14 | T55: 0 | U55: 0 | W55: 14 | X55: 0 | Y55: 0 | AA55: Calcul du rapport i en fonction de i, n, k, Rn, R1
J56: 15 | K56: 0 | L56: 0 | N56: 15 | O56: 0 | P56: 0 | S56: 15 | T56: 0 | U56: 0 | W56: 15 | X56: 0 | Y56: 0
J57: 16 | K57: 0 | L57: 0 | N57: 16 | O57: 0 | P57: 0 | S57: 16 | T57: 0 | U57: 0 | W57: 16 | X57: 0 | Y57: 0
J58: 17 | K58: 0 | L58: 0 | N58: 17 | O58: 0 | P58: 0 | S58: 17 | T58: 0 | U58: 0 | W58: 17 | X58: 0 | Y58: 0
J59: 18 | K59: 0 | L59: 0 | N59: 18 | O59: 0 | P59: 0 | S59: 18 | T59: 0 | U59: 0 | W59: 18 | X59: 0 | Y59: 0
J60: 19 | K60: 0 | L60: 0 | N60: 19 | O60: 0 | P60: 0 | S60: 19 | T60: 0 | U60: 0 | W60: 19 | X60: 0 | Y60: 0
J61: 20 | K61: 0 | L61: 0 | N61: 20 | O61: 0 | P61: 0 | S61: 20 | T61: 0 | U61: 0 | W61: 20 | X61: 0 | Y61: 0
J65: Forces de frottement en Newtons en fonction de la vitesse de rotation moteur, pour chaque rapport
E66: RPM | F66: 1 | G66: 2 | H66: 3 | I66: 4 | J66: 5 | K66: 6 | L66: 7 | M66: 8 | N66: 9 | O66: 10 | P66: 11 | Q66: 12 | R66: 13 | S66: 14 | T66: 15 | U66: 16 | V66: 17 | W66: 18 | X66: 19 | Y66: 20
E67: =H17 -> 750 | F67: =IF($D$6-F$66>=0,(0.5*$D$22*$D$21*$D$20*F114^2)+$D$30,0) -> 173.6555995 | G67: 194.4871773 | H67: 235.5673044 | I67: 312.1493495 | J67: 448.2722024 | K67: 680.5340005 | L67: 0 | M67: 0 | N67: 0 | O67: 0 | P67: 0 | Q67: 0 | R67: 0 | S67: 0 | T67: 0 | U67: 0 | V67: 0 | W67: 0 | X67: 0 | Y67: 0
E68: 1000 | F68: =IF($D$6-F$66>=0,(0.5*$D$22*$D$21*$D$20*F115^2)+$D$30,0) -> 186.6410658 | G68: 223.6749819 | H68: 296.706319 | I68: 432.8521769 | J68: 674.8483599 | K68: 1087.758223 | L68: 0 | M68: 0 | N68: 0 | O68: 0 | P68: 0 | Q68: 0 | R68: 0 | S68: 0 | T68: 0 | U68: 0 | V68: 0 | W68: 0 | X68: 0 | Y68: 0
E69: 1250 | F69: =IF($D$6-F$66>=0,(0.5*$D$22*$D$21*$D$20*F116^2)+$D$30,0) -> 203.3366653 | G69: 261.2021592 | H69: 375.3136234 | I69: 588.0415264 | J69: 966.1605623 | K69: 1611.332224 | L69: 0 | M69: 0 | N69: 0 | O69: 0 | P69: 0 | Q69: 0 | R69: 0 | S69: 0 | T69: 0 | U69: 0 | V69: 0 | W69: 0 | X69: 0 | Y69: 0
E70: 1500 | F70: =IF($D$6-F$66>=0,(0.5*$D$22*$D$21*$D$20*F117^2)+$D$30,0) -> 223.742398 | G70: 307.0687093 | H70: 471.3892177 | I70: 777.717398 | J70: 1322.20881 | K70: 2251.256002 | L70: 0 | M70: 0 | N70: 0 | O70: 0 | P70: 0 | Q70: 0 | R70: 0 | S70: 0 | T70: 0 | U70: 0 | V70: 0 | W70: 0 | X70: 0 | Y70: 0
E71: 1750 | F71: =IF($D$6-F$66>=0,(0.5*$D$22*$D$21*$D$20*F118^2)+$D$30,0) -> 247.858264 | G71: 361.2746321 | H71: 584.9331019 | I71: 1001.879792 | J71: 1742.993102 | K71: 3007.529558 | L71: 0 | M71: 0 | N71: 0 | O71: 0 | P71: 0 | Q71: 0 | R71: 0 | S71: 0 | T71: 0 | U71: 0 | V71: 0 | W71: 0 | X71: 0 | Y71: 0
E72: 2000 | F72: =IF($D$6-F$66>=0,(0.5*$D$22*$D$21*$D$20*F119^2)+$D$30,0) -> 275.6842631 | G72: 423.8199276 | H72: 715.945276 | I72: 1260.528708 | J72: 2228.51344 | K72: 3880.152892 | L72: 0 | M72: 0 | N72: 0 | O72: 0 | P72: 0 | Q72: 0 | R72: 0 | S72: 0 | T72: 0 | U72: 0 | V72: 0 | W72: 0 | X72: 0 | Y72: 0
E73: 2250 | F73: =IF($D$6-F$66>=0,(0.5*$D$22*$D$21*$D$20*F120^2)+$D$30,0) -> 307.2203955 | G73: 494.7045959 | H73: 864.4257399 | I73: 1553.664146 | J73: 2778.769822 | K73: 4869.126004 | L73: 0 | M73: 0 | N73: 0 | O73: 0 | P73: 0 | Q73: 0 | R73: 0 | S73: 0 | T73: 0 | U73: 0 | V73: 0 | W73: 0 | X73: 0 | Y73: 0
E74: 2500 | F74: =IF($D$6-F$66>=0,(0.5*$D$22*$D$21*$D$20*F121^2)+$D$30,0) -> 342.4666612 | G74: 573.9286369 | H74: 1030.374494 | I74: 1881.286106 | J74: 3393.762249 | K74: 5974.448894 | L74: 0 | M74: 0 | N74: 0 | O74: 0 | P74: 0 | Q74: 0 | R74: 0 | S74: 0 | T74: 0 | U74: 0 | V74: 0 | W74: 0 | X74: 0 | Y74: 0
E75: 2750 | F75: =IF($D$6-F$66>=0,(0.5*$D$22*$D$21*$D$20*F122^2)+$D$30,0) -> 381.42306 | G75: 661.4920507 | H75: 1213.791537 | I75: 2243.394588 | J75: 4073.490722 | K75: 7196.121562 | L75: 0 | M75: 0 | N75: 0 | O75: 0 | P75: 0 | Q75: 0 | R75: 0 | S75: 0 | T75: 0 | U75: 0 | V75: 0 | W75: 0 | X75: 0 | Y75: 0
E76: 3000 | F76: =IF($D$6-F$66>=0,(0.5*$D$22*$D$21*$D$20*F123^2)+$D$30,0) -> 424.0895921 | G76: 757.3948372 | H76: 1414.676871 | I76: 2639.989592 | J76: 4817.955239 | K76: 8534.144008 | L76: 0 | M76: 0 | N76: 0 | O76: 0 | P76: 0 | Q76: 0 | R76: 0 | S76: 0 | T76: 0 | U76: 0 | V76: 0 | W76: 0 | X76: 0 | Y76: 0
E77: 3250 | F77: =IF($D$6-F$66>=0,(0.5*$D$22*$D$21*$D$20*F124^2)+$D$30,0) -> 470.4662574 | G77: 861.6369964 | H77: 1633.030494 | I77: 3071.071119 | J77: 5627.155801 | K77: 9988.516231 | L77: 0 | M77: 0 | N77: 0 | O77: 0 | P77: 0 | Q77: 0 | R77: 0 | S77: 0 | T77: 0 | U77: 0 | V77: 0 | W77: 0 | X77: 0 | Y77: 0
E78: 3500 | F78: =IF($D$6-F$66>=0,(0.5*$D$22*$D$21*$D$20*F125^2)+$D$30,0) -> 520.5530559 | G78: 974.2185284 | H78: 1868.852408 | I78: 3536.639167 | J78: 6501.092408 | K78: 11559.23823 | L78: 0 | M78: 0 | N78: 0 | O78: 0 | P78: 0 | Q78: 0 | R78: 0 | S78: 0 | T78: 0 | U78: 0 | V78: 0 | W78: 0 | X78: 0 | Y78: 0
E79: 3750 | F79: =IF($D$6-F$66>=0,(0.5*$D$22*$D$21*$D$20*F126^2)+$D$30,0) -> 574.3499876 | G79: 1095.139433 | H79: 2122.142611 | I79: 4036.693738 | J79: 7439.765061 | K79: 13246.31001 | L79: 0 | M79: 0 | N79: 0 | O79: 0 | P79: 0 | Q79: 0 | R79: 0 | S79: 0 | T79: 0 | U79: 0 | V79: 0 | W79: 0 | X79: 0 | Y79: 0
E80: 4000 | F80: =IF($D$6-F$66>=0,(0.5*$D$22*$D$21*$D$20*F127^2)+$D$30,0) -> 631.8570526 | G80: 1224.399711 | H80: 2392.901104 | I80: 4571.234831 | J80: 8443.173758 | K80: 15049.73157 | L80: 0 | M80: 0 | N80: 0 | O80: 0 | P80: 0 | Q80: 0 | R80: 0 | S80: 0 | T80: 0 | U80: 0 | V80: 0 | W80: 0 | X80: 0 | Y80: 0
E81: 4700 | F81: =IF($D$6-F$66>=0,(0.5*$D$22*$D$21*$D$20*F128^2)+$D$30,0) -> 812.6147432 | G81: 1630.69395 | H81: 3243.956187 | I81: 6251.418188 | J81: 11597.11387 | K81: 20718.29275 | L81: 0 | M81: 0 | N81: 0 | O81: 0 | P81: 0 | Q81: 0 | R81: 0 | S81: 0 | T81: 0 | U81: 0 | V81: 0 | W81: 0 | X81: 0 | Y81: 0
E82: 4701 | F82: =IF($D$6-F$66>=0,(0.5*$D$22*$D$21*$D$20*F129^2)+$D$30,0) -> 812.8937749 | G82: 1631.321138 | H82: 3245.269942 | I82: 6254.01185 | J82: 11601.98254 | K82: 20727.04318 | L82: 0 | M82: 0 | N82: 0 | O82: 0 | P82: 0 | Q82: 0 | R82: 0 | S82: 0 | T82: 0 | U82: 0 | V82: 0 | W82: 0 | X82: 0 | Y82: 0
E95: RPM | F95: C. final 1 | G95: C. final 2 | H95: C. final 3 | I95: C. final 4 | J95: C. final 5 | K95: C. final 6 | L95: C. final 7 | M95: C. final 8 | N95: C. final 9 | O95: C. final 10 | P95: C. final 11 | Q95: C. final 12 | R95: C. final 13 | S95: C. final 14 | T95: C. final 15 | U95: C. final 16 | V95: C. final 17 | W95: C. final 18 | X95: C. final 19 | Y95: C. final 20
E96: =H17 -> 750 | F96: =$G17*$D$10*$D$9*$O$42/$H$8 -> 3552.879016 | G96: =$G17*$D$10*$D$9*$O$43/$H$8 -> 2369.782448 | H96: =$G17*$D$10*$D$9*$O$44/$H$8 -> 1637.381866 | I96: =$G17*$D$10*$D$9*$O$45/$H$8 -> 1165.334145 | J96: =$G17*$D$10*$D$9*$O$46/$H$8 -> 850.5543888 | K96: =$G17*$D$10*$D$9*$O$47/$H$8 -> 634.4426815 | L96: =$G17*$D$10*$D$9*$O$48/$H$8 -> 0 | M96: =$G17*$D$10*$D$9*$O$49/$H$8 -> 0 | N96: =$G17*$D$10*$D$9*$O$50/$H$8 -> 0 | O96: =$G17*$D$10*$D$9*$O$51/$H$8 -> 0 | P96: =$G17*$D$10*$D$9*$O$52/$H$8 -> 0 | Q96: =$G17*$D$10*$D$9*$O$53/$H$8 -> 0 | R96: =$G17*$D$10*$D$9*$O$54/$H$8 -> 0 | S96: =$G17*$D$10*$D$9*$O$55/$H$8 -> 0 | T96: =$G17*$D$10*$D$9*$O$56/$H$8 -> 0 | U96: =$G17*$D$10*$D$9*$O$57/$H$8 -> 0 | V96: =$G17*$D$10*$D$9*$O$58/$H$8 -> 0 | W96: =$G17*$D$10*$D$9*$O$59/$H$8 -> 0 | X96: =$G17*$D$10*$D$9*$O$60/$H$8 -> 0 | Y96: =$G17*$D$10*$D$9*$O$61/$H$8 -> 0
C97: Calcul de la traction en Newtons | E97: 1000 | F97: 4767.154123 | G97: 3179.708095 | H97: 2196.99339 | I97: 1563.612904 | J97: 1141.250193 | K97: 851.277522 | L97: 0 | M97: 0 | N97: 0 | O97: 0 | P97: 0 | Q97: 0 | R97: 0 | S97: 0 | T97: 0 | U97: 0 | V97: 0 | W97: 0 | X97: 0 | Y97: 0
C98: En fonction de la vitesse de rotation moteur | E98: 1250 | F98: 6071.375534 | G98: 4049.628234 | H98: 2798.057619 | I98: 1991.393792 | J98: 1453.479019 | K98: 1084.174203 | L98: 0 | M98: 0 | N98: 0 | O98: 0 | P98: 0 | Q98: 0 | R98: 0 | S98: 0 | T98: 0 | U98: 0 | V98: 0 | W98: 0 | X98: 0 | Y98: 0
C99: Pour chaque rapport | E99: 1500 | F99: 7285.650641 | G99: 4859.553881 | H99: 3357.669143 | I99: 2389.672551 | J99: 1744.174823 | K99: 1301.009043 | L99: 0 | M99: 0 | N99: 0 | O99: 0 | P99: 0 | Q99: 0 | R99: 0 | S99: 0 | T99: 0 | U99: 0 | V99: 0 | W99: 0 | X99: 0 | Y99: 0
E100: 1750 | F100: 8544.8989 | G100: 5699.476773 | H100: 3938.007019 | I100: 2802.702375 | J100: 2045.637138 | K100: 1525.874804 | L100: 0 | M100: 0 | N100: 0 | O100: 0 | P100: 0 | Q100: 0 | R100: 0 | S100: 0 | T100: 0 | U100: 0 | V100: 0 | W100: 0 | X100: 0 | Y100: 0
E101: 2000 | F101: 9894.093463 | G101: 6599.394159 | H101: 4559.797601 | I101: 3245.234328 | J101: 2368.632475 | K101: 1766.802404 | L101: 0 | M101: 0 | N101: 0 | O101: 0 | P101: 0 | Q101: 0 | R101: 0 | S101: 0 | T101: 0 | U101: 0 | V101: 0 | W101: 0 | X101: 0 | Y101: 0
E102: 2250 | F102: 11243.28803 | G102: 7499.311544 | H102: 5181.588183 | I102: 3687.766282 | J102: 2691.627813 | K102: 2007.730005 | L102: 0 | M102: 0 | N102: 0 | O102: 0 | P102: 0 | Q102: 0 | R102: 0 | S102: 0 | T102: 0 | U102: 0 | V102: 0 | W102: 0 | X102: 0 | Y102: 0
E103: 2500 | F103: 12142.75107 | G103: 8099.256468 | H103: 5596.115238 | I103: 3982.787585 | J103: 2906.958038 | K103: 2168.348405 | L103: 0 | M103: 0 | N103: 0 | O103: 0 | P103: 0 | Q103: 0 | R103: 0 | S103: 0 | T103: 0 | U103: 0 | V103: 0 | W103: 0 | X103: 0 | Y103: 0
E104: 2750 | F104: 12592.48259 | G104: 8399.228929 | H104: 5803.378765 | I104: 4130.298236 | J104: 3014.62315 | K104: 2248.657605 | L104: 0 | M104: 0 | N104: 0 | O104: 0 | P104: 0 | Q104: 0 | R104: 0 | S104: 0 | T104: 0 | U104: 0 | V104: 0 | W104: 0 | X104: 0 | Y104: 0
E105: 3000 | F105: 12367.61683 | G105: 8249.242698 | H105: 5699.747001 | I105: 4056.542911 | J105: 2960.790594 | K105: 2208.503005 | L105: 0 | M105: 0 | N105: 0 | O105: 0 | P105: 0 | Q105: 0 | R105: 0 | S105: 0 | T105: 0 | U105: 0 | V105: 0 | W105: 0 | X105: 0 | Y105: 0
E106: 3250 | F106: 11693.01955 | G106: 7799.284006 | H106: 5388.85171 | I106: 3835.276934 | J106: 2799.292925 | K106: 2088.039205 | L106: 0 | M106: 0 | N106: 0 | O106: 0 | P106: 0 | Q106: 0 | R106: 0 | S106: 0 | T106: 0 | U106: 0 | V106: 0 | W106: 0 | X106: 0 | Y106: 0
E107: 3500 | F107: 11018.42227 | G107: 7349.325313 | H107: 5077.95642 | I107: 3614.010957 | J107: 2637.795256 | K107: 1967.575405 | L107: 0 | M107: 0 | N107: 0 | O107: 0 | P107: 0 | Q107: 0 | R107: 0 | S107: 0 | T107: 0 | U107: 0 | V107: 0 | W107: 0 | X107: 0 | Y107: 0
E108: 3750 | F108: 9984.039768 | G108: 6659.388651 | H108: 4601.250307 | I108: 3274.736459 | J108: 2390.165498 | K108: 1782.864244 | L108: 0 | M108: 0 | N108: 0 | O108: 0 | P108: 0 | Q108: 0 | R108: 0 | S108: 0 | T108: 0 | U108: 0 | V108: 0 | W108: 0 | X108: 0 | Y108: 0
E109: 4000 | F109: 8904.684117 | G109: 5939.454743 | H109: 4103.817841 | I109: 2920.710896 | J109: 2131.769228 | K109: 1590.122164 | L109: 0 | M109: 0 | N109: 0 | O109: 0 | P109: 0 | Q109: 0 | R109: 0 | S109: 0 | T109: 0 | U109: 0 | V109: 0 | W109: 0 | X109: 0 | Y109: 0
E110: 4700 | F110: 6296.241295 | G110: 4199.614465 | H110: 2901.689383 | I110: 2065.149118 | J110: 1507.311575 | K110: 1124.328803 | L110: 0 | M110: 0 | N110: 0 | O110: 0 | P110: 0 | Q110: 0 | R110: 0 | S110: 0 | T110: 0 | U110: 0 | V110: 0 | W110: 0 | X110: 0 | Y110: 0
E111: 4701 | F111: 0 | G111: 0 | H111: 0 | I111: 0 | J111: 0 | K111: 0 | L111: 0 | M111: 0 | N111: 0 | O111: 0 | P111: 0 | Q111: 0 | R111: 0 | S111: 0 | T111: 0 | U111: 0 | V111: 0 | W111: 0 | X111: 0 | Y111: 0
E113: RPM | F113: 1 | G113: 2 | H113: 3 | I113: 4 | J113: 5 | K113: 6 | L113: 7 | M113: 8 | N113: 9 | O113: 10 | P113: 11 | Q113: 12 | R113: 13 | S113: 14 | T113: 15 | U113: 16 | V113: 17 | W113: 18 | X113: 19 | Y113: 20
E114: =H17 -> 750 | F114: =IF($D$6-F113>=0,$E114/($D$10*$O$42*$D$9)*$H$11*$H$7*60/1000,0) -> 6.286936218 | G114: =IF($D$6-G113>=0,$E114/($D$10*$O$43*$D$9)*$H$11*$H$7*60/1000,0) -> 9.425643179 | H114: =IF($D$6-H113>=0,$E114/($D$10*$O$44*$D$9)*$H$11*$H$7*60/1000,0) -> 13.64173149 | I114: =IF($D$6-$I$113>=0,$E114/($D$10*$O$45*$D$9)*$H$11*$H$7*60/1000,0) -> 19.16765578 | J114: =IF($D$6-$J$113>=0,$E114/($D$10*$O$46*$D$9)*$H$11*$H$7*60/1000,0) -> 26.2613703 | K114: =IF($D$6-$K$113>=0,$E114/($D$10*$O$47*$D$9)*$H$11*$H$7*60/1000,0) -> 35.20684282 | L114: =IF($D$6-$L$113>=0,$E114/($D$10*$O$48*$D$9)*$H$11*$H$7*60/1000,0) -> 0 | M114: =IF($D$6-$M$113>=0,$E114/($D$10*$O$49*$D$9)*$H$11*$H$7*60/1000,0) -> 0 | N114: =IF($D$6-$N$113>=0,$E114/($D$10*$O$50*$D$9)*$H$11*$H$7*60/1000,0) -> 0 | O114: =IF($D$6-$O$113>=0,$E114/($D$10*$O$51*$D$9)*$H$11*$H$7*60/1000,0) -> 0 | P114: =IF($D$6-$P$113>=0,$E114/($D$10*$O$52*$D$9)*$H$11*$H$7*60/1000,0) -> 0 | Q114: =IF($D$6-$Q$113>=0,$E114/($D$10*$O$53*$D$9)*$H$11*$H$7*60/1000,0) -> 0 | R114: =IF($D$6-$R$113>=0,$E114/($D$10*$O$54*$D$9)*$H$11*$H$7*60/1000,0) -> 0 | S114: =IF($D$6-$S$113>=0,$E114/($D$10*$O$55*$D$9)*$H$11*$H$7*60/1000,0) -> 0 | T114: =IF($D$6-$T$113>=0,$E114/($D$10*$O$56*$D$9)*$H$11*$H$7*60/1000,0) -> 0 | U114: =IF($D$6-$U$113>=0,$E114/($D$10*$O$57*$D$9)*$H$11*$H$7*60/1000,0) -> 0 | V114: =IF($D$6-$V$113>=0,$E114/($D$10*$O$58*$D$9)*$H$11*$H$7*60/1000,0) -> 0 | W114: =IF($D$6-$W$113>=0,$E114/($D$10*$O$59*$D$9)*$H$11*$H$7*60/1000,0) -> 0 | X114: =IF($D$6-$X$113>=0,$E114/($D$10*$O$60*$D$9)*$H$11*$H$7*60/1000,0) -> 0 | Y114: =IF($D$6-$Y$113>=0,$E114/($D$10*$O$61*$D$9)*$H$11*$H$7*60/1000,0) -> 0
E115: 1000 | F115: =$E115/($D$10*$O$42*$D$9)*$H$11*$H$7*60/1000 -> 8.382581624 | G115: =$E115/($D$10*$O$43*$D$9)*$H$11*$H$7*60/1000 -> 12.56752424 | H115: =$E115/($D$10*$O$44*$D$9)*$H$11*$H$7*60/1000 -> 18.18897532 | I115: 25.55687438 | J115: 35.0151604 | K115: 46.9424571 | L115: 0 | M115: 0 | N115: 0 | O115: 0 | P115: 0 | Q115: 0 | R115: 0 | S115: 0 | T115: 0 | U115: 0 | V115: 0 | W115: 0 | X115: 0 | Y115: 0
E116: 1250 | F116: 10.47822703 | G116: 15.7094053 | H116: 22.73621916 | I116: 31.94609297 | J116: 43.7689505 | K116: 58.67807137 | L116: 0 | M116: 0 | N116: 0 | O116: 0 | P116: 0 | Q116: 0 | R116: 0 | S116: 0 | T116: 0 | U116: 0 | V116: 0 | W116: 0 | X116: 0 | Y116: 0
E117: 1500 | F117: 12.57387244 | G117: 18.85128636 | H117: 27.28346299 | I117: 38.33531157 | J117: 52.5227406 | K117: 70.41368564 | L117: 0 | M117: 0 | N117: 0 | O117: 0 | P117: 0 | Q117: 0 | R117: 0 | S117: 0 | T117: 0 | U117: 0 | V117: 0 | W117: 0 | X117: 0 | Y117: 0
E118: 1750 | F118: 14.66951784 | G118: 21.99316742 | H118: 31.83070682 | I118: 44.72453016 | J118: 61.27653071 | K118: 82.14929992 | L118: 0 | M118: 0 | N118: 0 | O118: 0 | P118: 0 | Q118: 0 | R118: 0 | S118: 0 | T118: 0 | U118: 0 | V118: 0 | W118: 0 | X118: 0 | Y118: 0
C119: Calcul des vitesses en km/h | E119: 2000 | F119: 16.76516325 | G119: 25.13504848 | H119: 36.37795065 | I119: 51.11374875 | J119: 70.03032081 | K119: 93.88491419 | L119: 0 | M119: 0 | N119: 0 | O119: 0 | P119: 0 | Q119: 0 | R119: 0 | S119: 0 | T119: 0 | U119: 0 | V119: 0 | W119: 0 | X119: 0 | Y119: 0
C120: En fonction de la vitesse de rotation moteur | E120: 2250 | F120: 18.86080865 | G120: 28.27692954 | H120: 40.92519448 | I120: 57.50296735 | J120: 78.78411091 | K120: 105.6205285 | L120: 0 | M120: 0 | N120: 0 | O120: 0 | P120: 0 | Q120: 0 | R120: 0 | S120: 0 | T120: 0 | U120: 0 | V120: 0 | W120: 0 | X120: 0 | Y120: 0
C121: Pour chaque rapport | E121: 2500 | F121: 20.95645406 | G121: 31.4188106 | H121: 45.47243831 | I121: 63.89218594 | J121: 87.53790101 | K121: 117.3561427 | L121: 0 | M121: 0 | N121: 0 | O121: 0 | P121: 0 | Q121: 0 | R121: 0 | S121: 0 | T121: 0 | U121: 0 | V121: 0 | W121: 0 | X121: 0 | Y121: 0
E122: 2750 | F122: 23.05209947 | G122: 34.56069166 | H122: 50.01968214 | I122: 70.28140454 | J122: 96.29169111 | K122: 129.091757 | L122: 0 | M122: 0 | N122: 0 | O122: 0 | P122: 0 | Q122: 0 | R122: 0 | S122: 0 | T122: 0 | U122: 0 | V122: 0 | W122: 0 | X122: 0 | Y122: 0
E123: 3000 | F123: 25.14774487 | G123: 37.70257272 | H123: 54.56692597 | I123: 76.67062313 | J123: 105.0454812 | K123: 140.8273713 | L123: 0 | M123: 0 | N123: 0 | O123: 0 | P123: 0 | Q123: 0 | R123: 0 | S123: 0 | T123: 0 | U123: 0 | V123: 0 | W123: 0 | X123: 0 | Y123: 0
E124: 3250 | F124: 27.24339028 | G124: 40.84445378 | H124: 59.11416981 | I124: 83.05984172 | J124: 113.7992713 | K124: 152.5629856 | L124: 0 | M124: 0 | N124: 0 | O124: 0 | P124: 0 | Q124: 0 | R124: 0 | S124: 0 | T124: 0 | U124: 0 | V124: 0 | W124: 0 | X124: 0 | Y124: 0
E125: 3500 | F125: 29.33903568 | G125: 43.98633484 | H125: 63.66141364 | I125: 89.44906032 | J125: 122.5530614 | K125: 164.2985998 | L125: 0 | M125: 0 | N125: 0 | O125: 0 | P125: 0 | Q125: 0 | R125: 0 | S125: 0 | T125: 0 | U125: 0 | V125: 0 | W125: 0 | X125: 0 | Y125: 0
E126: 3750 | F126: 31.43468109 | G126: 47.1282159 | H126: 68.20865747 | I126: 95.83827891 | J126: 131.3068515 | K126: 176.0342141 | L126: 0 | M126: 0 | N126: 0 | O126: 0 | P126: 0 | Q126: 0 | R126: 0 | S126: 0 | T126: 0 | U126: 0 | V126: 0 | W126: 0 | X126: 0 | Y126: 0
E127: 4000 | F127: 33.5303265 | G127: 50.27009696 | H127: 72.7559013 | I127: 102.2274975 | J127: 140.0606416 | K127: 187.7698284 | L127: 0 | M127: 0 | N127: 0 | O127: 0 | P127: 0 | Q127: 0 | R127: 0 | S127: 0 | T127: 0 | U127: 0 | V127: 0 | W127: 0 | X127: 0 | Y127: 0
E128: 4700 | F128: 39.39813363 | G128: 59.06736392 | H128: 85.48818403 | I128: 120.1173096 | J128: 164.5712539 | K128: 220.6295483 | L128: 0 | M128: 0 | N128: 0 | O128: 0 | P128: 0 | Q128: 0 | R128: 0 | S128: 0 | T128: 0 | U128: 0 | V128: 0 | W128: 0 | X128: 0 | Y128: 0
E129: 4701 | F129: 39.40651622 | G129: 59.07993145 | H129: 85.506373 | I129: 120.1428664 | J129: 164.6062691 | K129: 220.6764908 | L129: 0 | M129: 0 | N129: 0 | O129: 0 | P129: 0 | Q129: 0 | R129: 0 | S129: 0 | T129: 0 | U129: 0 | V129: 0 | W129: 0 | X129: 0 | Y129: 0
D134: Ligne 1 | G134: Ligne 2 | J134: Ligne 3 | M134: Ligne 4 | P134: Ligne 5 | S134: Ligne 6 | V134: Ligne 7 | Y134: Ligne 8 | AB134: Ligne 9 | AE134: Ligne 10 | AH134: Ligne 11 | AK134: Ligne 12 | AN134: Ligne 13 | AQ134: Ligne 14 | AT134: Ligne 15 | AW134: Ligne 16 | AZ134: Ligne 17 | BC134: Ligne 18 | BF134: Ligne 19 | BI134: Ligne 20
D135: =F114 -> 6.286936218 | E135: =F96 -> 3552.879016 | G135: =G114 -> 9.425643179 | H135: =G96 -> 2369.782448 | J135: =H114 -> 13.64173149 | K135: =H96 -> 1637.381866 | M135: =I114 -> 19.16765578 | N135: =I96 -> 1165.334145 | P135: =J114 -> 26.2613703 | Q135: =J96 -> 850.5543888 | S135: =K114 -> 35.20684282 | T135: =K96 -> 634.4426815 | V135: =L114 -> 0 | W135: =L96 -> 0 | Y135: =M114 -> 0 | Z135: =M96 -> 0 | AB135: =N114 -> 0 | AC135: =N96 -> 0 | AE135: =O114 -> 0 | AF135: =O96 -> 0 | AH135: =P114 -> 0 | AI135: =P96 -> 0 | AK135: =Q114 -> 0 | AL135: =Q96 -> 0 | AN135: =R114 -> 0 | AO135: =R96 -> 0 | AQ135: =S114 -> 0 | AR135: =S96 -> 0 | AT135: =T114 -> 0 | AU135: =T96 -> 0 | AW135: =U114 -> 0 | AX135: =U96 -> 0 | AZ135: =V114 -> 0 | BA135: =V96 -> 0 | BC135: =W114 -> 0 | BD135: =W96 -> 0 | BF135: =X114 -> 0 | BG135: =X96 -> 0 | BI135: =Y114 -> 0 | BJ135: =Y96 -> 0
D136: 8.382581624 | E136: 4767.154123 | G136: 12.56752424 | H136: 3179.708095 | J136: 18.18897532 | K136: 2196.99339 | M136: 25.55687438 | N136: 1563.612904 | P136: 35.0151604 | Q136: 1141.250193 | S136: 46.9424571 | T136: 851.277522 | V136: 0 | W136: 0 | Y136: 0 | Z136: 0 | AB136: 0 | AC136: 0 | AE136: 0 | AF136: 0 | AH136: 0 | AI136: 0 | AK136: 0 | AL136: 0 | AN136: 0 | AO136: 0 | AQ136: 0 | AR136: 0 | AT136: 0 | AU136: 0 | AW136: 0 | AX136: 0 | AZ136: 0 | BA136: 0 | BC136: 0 | BD136: 0 | BF136: 0 | BG136: 0 | BI136: 0 | BJ136: 0
D137: 10.47822703 | E137: 6071.375534 | G137: 15.7094053 | H137: 4049.628234 | J137: 22.73621916 | K137: 2798.057619 | M137: 31.94609297 | N137: 1991.393792 | P137: 43.7689505 | Q137: 1453.479019 | S137: 58.67807137 | T137: 1084.174203 | V137: 0 | W137: 0 | Y137: 0 | Z137: 0 | AB137: 0 | AC137: 0 | AE137: 0 | AF137: 0 | AH137: 0 | AI137: 0 | AK137: 0 | AL137: 0 | AN137: 0 | AO137: 0 | AQ137: 0 | AR137: 0 | AT137: 0 | AU137: 0 | AW137: 0 | AX137: 0 | AZ137: 0 | BA137: 0 | BC137: 0 | BD137: 0 | BF137: 0 | BG137: 0 | BI137: 0 | BJ137: 0
D138: 12.57387244 | E138: 7285.650641 | G138: 18.85128636 | H138: 4859.553881 | J138: 27.28346299 | K138: 3357.669143 | M138: 38.33531157 | N138: 2389.672551 | P138: 52.5227406 | Q138: 1744.174823 | S138: 70.41368564 | T138: 1301.009043 | V138: 0 | W138: 0 | Y138: 0 | Z138: 0 | AB138: 0 | AC138: 0 | AE138: 0 | AF138: 0 | AH138: 0 | AI138: 0 | AK138: 0 | AL138: 0 | AN138: 0 | AO138: 0 | AQ138: 0 | AR138: 0 | AT138: 0 | AU138: 0 | AW138: 0 | AX138: 0 | AZ138: 0 | BA138: 0 | BC138: 0 | BD138: 0 | BF138: 0 | BG138: 0 | BI138: 0 | BJ138: 0
C139: Transposition des données | D139: 14.66951784 | E139: 8544.8989 | G139: 21.99316742 | H139: 5699.476773 | J139: 31.83070682 | K139: 3938.007019 | M139: 44.72453016 | N139: 2802.702375 | P139: 61.27653071 | Q139: 2045.637138 | S139: 82.14929992 | T139: 1525.874804 | V139: 0 | W139: 0 | Y139: 0 | Z139: 0 | AB139: 0 | AC139: 0 | AE139: 0 | AF139: 0 | AH139: 0 | AI139: 0 | AK139: 0 | AL139: 0 | AN139: 0 | AO139: 0 | AQ139: 0 | AR139: 0 | AT139: 0 | AU139: 0 | AW139: 0 | AX139: 0 | AZ139: 0 | BA139: 0 | BC139: 0 | BD139: 0 | BF139: 0 | BG139: 0 | BI139: 0 | BJ139: 0
C140: Traction en Newtons en fonction de la vitesse en km/h | D140: 16.76516325 | E140: 9894.093463 | G140: 25.13504848 | H140: 6599.394159 | J140: 36.37795065 | K140: 4559.797601 | M140: 51.11374875 | N140: 3245.234328 | P140: 70.03032081 | Q140: 2368.632475 | S140: 93.88491419 | T140: 1766.802404 | V140: 0 | W140: 0 | Y140: 0 | Z140: 0 | AB140: 0 | AC140: 0 | AE140: 0 | AF140: 0 | AH140: 0 | AI140: 0 | AK140: 0 | AL140: 0 | AN140: 0 | AO140: 0 | AQ140: 0 | AR140: 0 | AT140: 0 | AU140: 0 | AW140: 0 | AX140: 0 | AZ140: 0 | BA140: 0 | BC140: 0 | BD140: 0 | BF140: 0 | BG140: 0 | BI140: 0 | BJ140: 0
D141: 18.86080865 | E141: 11243.28803 | G141: 28.27692954 | H141: 7499.311544 | J141: 40.92519448 | K141: 5181.588183 | M141: 57.50296735 | N141: 3687.766282 | P141: 78.78411091 | Q141: 2691.627813 | S141: 105.6205285 | T141: 2007.730005 | V141: 0 | W141: 0 | Y141: 0 | Z141: 0 | AB141: 0 | AC141: 0 | AE141: 0 | AF141: 0 | AH141: 0 | AI141: 0 | AK141: 0 | AL141: 0 | AN141: 0 | AO141: 0 | AQ141: 0 | AR141: 0 | AT141: 0 | AU141: 0 | AW141: 0 | AX141: 0 | AZ141: 0 | BA141: 0 | BC141: 0 | BD141: 0 | BF141: 0 | BG141: 0 | BI141: 0 | BJ141: 0
D142: 20.95645406 | E142: 12142.75107 | G142: 31.4188106 | H142: 8099.256468 | J142: 45.47243831 | K142: 5596.115238 | M142: 63.89218594 | N142: 3982.787585 | P142: 87.53790101 | Q142: 2906.958038 | S142: 117.3561427 | T142: 2168.348405 | V142: 0 | W142: 0 | Y142: 0 | Z142: 0 | AB142: 0 | AC142: 0 | AE142: 0 | AF142: 0 | AH142: 0 | AI142: 0 | AK142: 0 | AL142: 0 | AN142: 0 | AO142: 0 | AQ142: 0 | AR142: 0 | AT142: 0 | AU142: 0 | AW142: 0 | AX142: 0 | AZ142: 0 | BA142: 0 | BC142: 0 | BD142: 0 | BF142: 0 | BG142: 0 | BI142: 0 | BJ142: 0
D143: 23.05209947 | E143: 12592.48259 | G143: 34.56069166 | H143: 8399.228929 | J143: 50.01968214 | K143: 5803.378765 | M143: 70.28140454 | N143: 4130.298236 | P143: 96.29169111 | Q143: 3014.62315 | S143: 129.091757 | T143: 2248.657605 | V143: 0 | W143: 0 | Y143: 0 | Z143: 0 | AB143: 0 | AC143: 0 | AE143: 0 | AF143: 0 | AH143: 0 | AI143: 0 | AK143: 0 | AL143: 0 | AN143: 0 | AO143: 0 | AQ143: 0 | AR143: 0 | AT143: 0 | AU143: 0 | AW143: 0 | AX143: 0 | AZ143: 0 | BA143: 0 | BC143: 0 | BD143: 0 | BF143: 0 | BG143: 0 | BI143: 0 | BJ143: 0
D144: 25.14774487 | E144: 12367.61683 | G144: 37.70257272 | H144: 8249.242698 | J144: 54.56692597 | K144: 5699.747001 | M144: 76.67062313 | N144: 4056.542911 | P144: 105.0454812 | Q144: 2960.790594 | S144: 140.8273713 | T144: 2208.503005 | V144: 0 | W144: 0 | Y144: 0 | Z144: 0 | AB144: 0 | AC144: 0 | AE144: 0 | AF144: 0 | AH144: 0 | AI144: 0 | AK144: 0 | AL144: 0 | AN144: 0 | AO144: 0 | AQ144: 0 | AR144: 0 | AT144: 0 | AU144: 0 | AW144: 0 | AX144: 0 | AZ144: 0 | BA144: 0 | BC144: 0 | BD144: 0 | BF144: 0 | BG144: 0 | BI144: 0 | BJ144: 0
D145: 27.24339028 | E145: 11693.01955 | G145: 40.84445378 | H145: 7799.284006 | J145: 59.11416981 | K145: 5388.85171 | M145: 83.05984172 | N145: 3835.276934 | P145: 113.7992713 | Q145: 2799.292925 | S145: 152.5629856 | T145: 2088.039205 | V145: 0 | W145: 0 | Y145: 0 | Z145: 0 | AB145: 0 | AC145: 0 | AE145: 0 | AF145: 0 | AH145: 0 | AI145: 0 | AK145: 0 | AL145: 0 | AN145: 0 | AO145: 0 | AQ145: 0 | AR145: 0 | AT145: 0 | AU145: 0 | AW145: 0 | AX145: 0 | AZ145: 0 | BA145: 0 | BC145: 0 | BD145: 0 | BF145: 0 | BG145: 0 | BI145: 0 | BJ145: 0
D146: 29.33903568 | E146: 11018.42227 | G146: 43.98633484 | H146: 7349.325313 | J146: 63.66141364 | K146: 5077.95642 | M146: 89.44906032 | N146: 3614.010957 | P146: 122.5530614 | Q146: 2637.795256 | S146: 164.2985998 | T146: 1967.575405 | V146: 0 | W146: 0 | Y146: 0 | Z146: 0 | AB146: 0 | AC146: 0 | AE146: 0 | AF146: 0 | AH146: 0 | AI146: 0 | AK146: 0 | AL146: 0 | AN146: 0 | AO146: 0 | AQ146: 0 | AR146: 0 | AT146: 0 | AU146: 0 | AW146: 0 | AX146: 0 | AZ146: 0 | BA146: 0 | BC146: 0 | BD146: 0 | BF146: 0 | BG146: 0 | BI146: 0 | BJ146: 0
D147: 31.43468109 | E147: 9984.039768 | G147: 47.1282159 | H147: 6659.388651 | J147: 68.20865747 | K147: 4601.250307 | M147: 95.83827891 | N147: 3274.736459 | P147: 131.3068515 | Q147: 2390.165498 | S147: 176.0342141 | T147: 1782.864244 | V147: 0 | W147: 0 | Y147: 0 | Z147: 0 | AB147: 0 | AC147: 0 | AE147: 0 | AF147: 0 | AH147: 0 | AI147: 0 | AK147: 0 | AL147: 0 | AN147: 0 | AO147: 0 | AQ147: 0 | AR147: 0 | AT147: 0 | AU147: 0 | AW147: 0 | AX147: 0 | AZ147: 0 | BA147: 0 | BC147: 0 | BD147: 0 | BF147: 0 | BG147: 0 | BI147: 0 | BJ147: 0
D148: 33.5303265 | E148: 8904.684117 | G148: 50.27009696 | H148: 5939.454743 | J148: 72.7559013 | K148: 4103.817841 | M148: 102.2274975 | N148: 2920.710896 | P148: 140.0606416 | Q148: 2131.769228 | S148: 187.7698284 | T148: 1590.122164 | V148: 0 | W148: 0 | Y148: 0 | Z148: 0 | AB148: 0 | AC148: 0 | AE148: 0 | AF148: 0 | AH148: 0 | AI148: 0 | AK148: 0 | AL148: 0 | AN148: 0 | AO148: 0 | AQ148: 0 | AR148: 0 | AT148: 0 | AU148: 0 | AW148: 0 | AX148: 0 | AZ148: 0 | BA148: 0 | BC148: 0 | BD148: 0 | BF148: 0 | BG148: 0 | BI148: 0 | BJ148: 0
D149: 39.39813363 | E149: 6296.241295 | G149: 59.06736392 | H149: 4199.614465 | J149: 85.48818403 | K149: 2901.689383 | M149: 120.1173096 | N149: 2065.149118 | P149: 164.5712539 | Q149: 1507.311575 | S149: 220.6295483 | T149: 1124.328803 | V149: 0 | W149: 0 | Y149: 0 | Z149: 0 | AB149: 0 | AC149: 0 | AE149: 0 | AF149: 0 | AH149: 0 | AI149: 0 | AK149: 0 | AL149: 0 | AN149: 0 | AO149: 0 | AQ149: 0 | AR149: 0 | AT149: 0 | AU149: 0 | AW149: 0 | AX149: 0 | AZ149: 0 | BA149: 0 | BC149: 0 | BD149: 0 | BF149: 0 | BG149: 0 | BI149: 0 | BJ149: 0
D150: 39.40651622 | E150: 0 | G150: 59.07993145 | H150: 0 | J150: 85.506373 | K150: 0 | M150: 120.1428664 | N150: 0 | P150: 164.6062691 | Q150: 0 | S150: 220.6764908 | T150: 0 | V150: 0 | W150: 0 | Y150: 0 | Z150: 0 | AB150: 0 | AC150: 0 | AE150: 0 | AF150: 0 | AH150: 0 | AI150: 0 | AK150: 0 | AL150: 0 | AN150: 0 | AO150: 0 | AQ150: 0 | AR150: 0 | AT150: 0 | AU150: 0 | AW150: 0 | AX150: 0 | AZ150: 0 | BA150: 0 | BC150: 0 | BD150: 0 | BF150: 0 | BG150: 0 | BI150: 0 | BJ150: 0
E154: Intersections 1 - 2 | H154: Intersections 2-3 | K154: Intersections 3-4 | N154: Intersections 4-5 | Q154: Intersections 5-6 | T154: Intersections 6-7 | W154: Intersections 7-8 | Z154: Intersections 8-9 | AC154: Intersections 9-10 | AF154: Intersections 10-11 | AI154: Intersections 11-12 | AL154: Intersections 12-13 | AO154: Intersections 13-14 | AR154: Intersections 14-15 | AU154: Intersections 15-16 | AX154: Intersections 16-17 | BA154: Intersections 17-18 | BD154: Intersections 18-19 | BG154: Intersections 19-20
E155: =Intersectcomplex(D135,E135,D136,E136,LIGNE2,TRUE) ->  | F155: =Intersectcomplex(D135,E135,D136,E136,LIGNE2,FALSE) ->  | H155: =Intersectcomplex(G135,H135,G136,H136,LIGNE3,TRUE) ->  | I155: =Intersectcomplex(G135,H135,G136,H136,LIGNE3,FALSE) ->  | K155: =Intersectcomplex(J135,K135,J136,K136,LIGNE4,TRUE) ->  | L155: =Intersectcomplex(J135,K135,J136,K136,LIGNE4,FALSE) ->  | N155: =Intersectcomplex(M135,N135,M136,N136,LIGNE5,TRUE) ->  | O155: =Intersectcomplex(M135,N135,M136,N136,LIGNE5,FALSE) ->  | Q155: =Intersectcomplex(P135,Q135,P136,Q136,LIGNE6,TRUE) ->  | R155: =Intersectcomplex(P135,Q135,P136,Q136,LIGNE6,FALSE) ->  | T155: =Intersectcomplex(S135,T135,S136,T136,LIGNE7,TRUE) ->  | U155: =Intersectcomplex(S135,T135,S136,T136,LIGNE7,FALSE) ->  | W155: =Intersectcomplex(V135,W135,V136,W136,LIGNE8,TRUE) -> 0 | X155: =Intersectcomplex(V135,W135,V136,W136,LIGNE8,FALSE) -> 0 | Z155: =Intersectcomplex(Y135,Z135,Y136,Z136,LIGNE9,TRUE) -> 0 | AA155: =Intersectcomplex(Y135,Z135,Y136,Z136,LIGNE9,FALSE) -> 0 | AC155: =Intersectcomplex(AB135,AC135,AB136,AC136,LIGNE10,TRUE) -> 0 | AD155: =Intersectcomplex(AB135,AC135,AB136,AC136,LIGNE10,FALSE) -> 0 | AF155: =Intersectcomplex(AE135,AF135,AE136,AF136,LIGNE11,TRUE) -> 0 | AG155: =Intersectcomplex(AE135,AF135,AE136,AF136,LIGNE11,FALSE) -> 0 | AI155: =Intersectcomplex(AH135,AI135,AH136,AI136,LIGNE12,TRUE) -> 0 | AJ155: =Intersectcomplex(AH135,AI135,AH136,AI136,LIGNE12,FALSE) -> 0 | AL155: =Intersectcomplex(AK135,AL135,AK136,AL136,LIGNE13,TRUE) -> 0 | AM155: =Intersectcomplex(AK135,AL135,AK136,AL136,LIGNE13,FALSE) -> 0 | AO155: =Intersectcomplex(AN135,AO135,AN136,AO136,LIGNE14,TRUE) -> 0 | AP155: =Intersectcomplex(AN135,AO135,AN136,AO136,LIGNE14,FALSE) -> 0 | AR155: =Intersectcomplex(AQ135,AR135,AQ136,AR136,LIGNE15,TRUE) -> 0 | AS155: =Intersectcomplex(AQ135,AR135,AQ136,AR136,LIGNE15,FALSE) -> 0 | AU155: =Intersectcomplex(AT135,AU135,AT136,AU136,LIGNE16,TRUE) -> 0 | AV155: =Intersectcomplex(AT135,AU135,AT136,AU136,LIGNE16,FALSE) -> 0 | AX155: =Intersectcomplex(AW135,AX135,AW136,AX136,LIGNE17,TRUE) -> 0 | AY155: =Intersectcomplex(AW135,AX135,AW136,AX136,LIGNE17,FALSE) -> 0 | BA155: =Intersectcomplex(AZ135,BA135,AZ136,BA136,LIGNE18,TRUE) -> 0 | BB155: =Intersectcomplex(AZ135,BA135,AZ136,BA136,LIGNE18,FALSE) -> 0 | BD155: =Intersectcomplex(BC135,BD135,BC136,BD136,LIGNE19,TRUE) -> 0 | BE155: =Intersectcomplex(BC135,BD135,BC136,BD136,LIGNE19,FALSE) -> 0 | BG155: =Intersectcomplex(BF135,BG135,BF136,BG136,LIGNE20,TRUE) -> 0 | BH155: =Intersectcomplex(BF135,BG135,BF136,BG136,LIGNE20,FALSE) -> 0
W156: 0 | X156: 0 | Z156: 0 | AA156: 0 | AC156: 0 | AD156: 0 | AF156: 0 | AG156: 0 | AI156: 0 | AJ156: 0 | AL156: 0 | AM156: 0 | AO156: 0 | AP156: 0 | AR156: 0 | AS156: 0 | AU156: 0 | AV156: 0 | AX156: 0 | AY156: 0 | BA156: 0 | BB156: 0 | BD156: 0 | BE156: 0 | BG156: 0 | BH156: 0
W157: 0 | X157: 0 | Z157: 0 | AA157: 0 | AC157: 0 | AD157: 0 | AF157: 0 | AG157: 0 | AI157: 0 | AJ157: 0 | AL157: 0 | AM157: 0 | AO157: 0 | AP157: 0 | AR157: 0 | AS157: 0 | AU157: 0 | AV157: 0 | AX157: 0 | AY157: 0 | BA157: 0 | BB157: 0 | BD157: 0 | BE157: 0 | BG157: 0 | BH157: 0
W158: 0 | X158: 0 | Z158: 0 | AA158: 0 | AC158: 0 | AD158: 0 | AF158: 0 | AG158: 0 | AI158: 0 | AJ158: 0 | AL158: 0 | AM158: 0 | AO158: 0 | AP158: 0 | AR158: 0 | AS158: 0 | AU158: 0 | AV158: 0 | AX158: 0 | AY158: 0 | BA158: 0 | BB158: 0 | BD158: 0 | BE158: 0 | BG158: 0 | BH158: 0
W159: 0 | X159: 0 | Z159: 0 | AA159: 0 | AC159: 0 | AD159: 0 | AF159: 0 | AG159: 0 | AI159: 0 | AJ159: 0 | AL159: 0 | AM159: 0 | AO159: 0 | AP159: 0 | AR159: 0 | AS159: 0 | AU159: 0 | AV159: 0 | AX159: 0 | AY159: 0 | BA159: 0 | BB159: 0 | BD159: 0 | BE159: 0 | BG159: 0 | BH159: 0
W160: 0 | X160: 0 | Z160: 0 | AA160: 0 | AC160: 0 | AD160: 0 | AF160: 0 | AG160: 0 | AI160: 0 | AJ160: 0 | AL160: 0 | AM160: 0 | AO160: 0 | AP160: 0 | AR160: 0 | AS160: 0 | AU160: 0 | AV160: 0 | AX160: 0 | AY160: 0 | BA160: 0 | BB160: 0 | BD160: 0 | BE160: 0 | BG160: 0 | BH160: 0
W161: 0 | X161: 0 | Z161: 0 | AA161: 0 | AC161: 0 | AD161: 0 | AF161: 0 | AG161: 0 | AI161: 0 | AJ161: 0 | AL161: 0 | AM161: 0 | AO161: 0 | AP161: 0 | AR161: 0 | AS161: 0 | AU161: 0 | AV161: 0 | AX161: 0 | AY161: 0 | BA161: 0 | BB161: 0 | BD161: 0 | BE161: 0 | BG161: 0 | BH161: 0
W162: 0 | X162: 0 | Z162: 0 | AA162: 0 | AC162: 0 | AD162: 0 | AF162: 0 | AG162: 0 | AI162: 0 | AJ162: 0 | AL162: 0 | AM162: 0 | AO162: 0 | AP162: 0 | AR162: 0 | AS162: 0 | AU162: 0 | AV162: 0 | AX162: 0 | AY162: 0 | BA162: 0 | BB162: 0 | BD162: 0 | BE162: 0 | BG162: 0 | BH162: 0
W163: 0 | X163: 0 | Z163: 0 | AA163: 0 | AC163: 0 | AD163: 0 | AF163: 0 | AG163: 0 | AI163: 0 | AJ163: 0 | AL163: 0 | AM163: 0 | AO163: 0 | AP163: 0 | AR163: 0 | AS163: 0 | AU163: 0 | AV163: 0 | AX163: 0 | AY163: 0 | BA163: 0 | BB163: 0 | BD163: 0 | BE163: 0 | BG163: 0 | BH163: 0
W164: 0 | X164: 0 | Z164: 0 | AA164: 0 | AC164: 0 | AD164: 0 | AF164: 0 | AG164: 0 | AI164: 0 | AJ164: 0 | AL164: 0 | AM164: 0 | AO164: 0 | AP164: 0 | AR164: 0 | AS164: 0 | AU164: 0 | AV164: 0 | AX164: 0 | AY164: 0 | BA164: 0 | BB164: 0 | BD164: 0 | BE164: 0 | BG164: 0 | BH164: 0
W165: 0 | X165: 0 | Z165: 0 | AA165: 0 | AC165: 0 | AD165: 0 | AF165: 0 | AG165: 0 | AI165: 0 | AJ165: 0 | AL165: 0 | AM165: 0 | AO165: 0 | AP165: 0 | AR165: 0 | AS165: 0 | AU165: 0 | AV165: 0 | AX165: 0 | AY165: 0 | BA165: 0 | BB165: 0 | BD165: 0 | BE165: 0 | BG165: 0 | BH165: 0
W166: 0 | X166: 0 | Z166: 0 | AA166: 0 | AC166: 0 | AD166: 0 | AF166: 0 | AG166: 0 | AI166: 0 | AJ166: 0 | AL166: 0 | AM166: 0 | AO166: 0 | AP166: 0 | AR166: 0 | AS166: 0 | AU166: 0 | AV166: 0 | AX166: 0 | AY166: 0 | BA166: 0 | BB166: 0 | BD166: 0 | BE166: 0 | BG166: 0 | BH166: 0
N167: 101.062069 | O167: 2985.287099 | Q167: 137.0197406 | R167: 2221.531202 | W167: 0 | X167: 0 | Z167: 0 | AA167: 0 | AC167: 0 | AD167: 0 | AF167: 0 | AG167: 0 | AI167: 0 | AJ167: 0 | AL167: 0 | AM167: 0 | AO167: 0 | AP167: 0 | AR167: 0 | AS167: 0 | AU167: 0 | AV167: 0 | AX167: 0 | AY167: 0 | BA167: 0 | BB167: 0 | BD167: 0 | BE167: 0 | BG167: 0 | BH167: 0
E168: 34.68020448 | F168: 8393.52366 | H168: 51.08037532 | I168: 5779.20555 | K168: 72.78105444 | L168: 4101.442987 | W168: 0 | X168: 0 | Z168: 0 | AA168: 0 | AC168: 0 | AD168: 0 | AF168: 0 | AG168: 0 | AI168: 0 | AJ168: 0 | AL168: 0 | AM168: 0 | AO168: 0 | AP168: 0 | AR168: 0 | AS168: 0 | AU168: 0 | AV168: 0 | AX168: 0 | AY168: 0 | BA168: 0 | BB168: 0 | BD168: 0 | BE168: 0 | BG168: 0 | BH168: 0
W169: 0 | X169: 0 | Z169: 0 | AA169: 0 | AC169: 0 | AD169: 0 | AF169: 0 | AG169: 0 | AI169: 0 | AJ169: 0 | AL169: 0 | AM169: 0 | AO169: 0 | AP169: 0 | AR169: 0 | AS169: 0 | AU169: 0 | AV169: 0 | AX169: 0 | AY169: 0 | BA169: 0 | BB169: 0 | BD169: 0 | BE169: 0 | BG169: 0 | BH169: 0
W170: 0 | X170: 0 | Z170: 0 | AA170: 0 | AC170: 0 | AD170: 0 | AF170: 0 | AG170: 0 | AI170: 0 | AJ170: 0 | AL170: 0 | AM170: 0 | AO170: 0 | AP170: 0 | AR170: 0 | AS170: 0 | AU170: 0 | AV170: 0 | AX170: 0 | AY170: 0 | BA170: 0 | BB170: 0 | BD170: 0 | BE170: 0 | BG170: 0 | BH170: 0
J173: km/h | K173: RPM | L173: Vitesse | M173: Changement | N173: km/h | O173: RPM | Q173: Milieux | T173: Etiquettes
J174: 0 | K174: 0 | L174: 1 | M174: 0 | N174: =OFFSET(J174,0,0,D6*2) -> 0 | O174: =OFFSET(K174,0,0,D6*2) -> 0
G175: Vitesse en km/h intersection 1-2 | J175: =IF($D$6-1-L175+1-M175>=0,INDEX($E$155:$E$170, MATCH(TRUE, $E$155:$E$170<>"", 0)),OFFSET($F$128,0,$D$6-1)) -> 34.68020448 | K175: =(1000*J175/60)*($D$10*$O42*$D$9)/($H$11*$H$7) -> 4137.174684 | L175: 1 | M175: 1 | N175: 34.68020448 | O175: 4137.174684 | Q175: =(N175-N174)/2+N174 -> 17.34010224 | R175: =(O175-O174)/2+O174 -> 2068.587342 | T175: 1st
J176: =IF($D$6-1-L176+1-M176>=0,INDEX($E$155:$E$170, MATCH(TRUE, $E$155:$E$170<>"", 0)),OFFSET($F$128,0,$D$6-1)) -> 34.68020448 | K176: =(1000*J175/60)*($D$10*$O43*$D$9)/($H$11*$H$7) -> 2759.509655 | L176: 2 | M176: 0 | N176: 34.68020448 | O176: 2759.509655
G177: Vitesse en km/h intersection 2-3 | J177: =IF($D$6-1-L177+1-M177>=0,INDEX($H$155:$H$170, MATCH(TRUE, $H$155:$H$170<>"", 0)),OFFSET($F$128,0,$D$6-1)) -> 51.08037532 | K177: =(1000*J177/60)*($D$10*$O43*$D$9)/($H$11*$H$7) -> 4064.473985 | L177: 2 | M177: 1 | N177: 51.08037532 | O177: 4064.473985 | Q177: =(N177-N176)/2+N176 -> 42.8802899 | R177: =(O177-O176)/2+O176 -> 3411.99182 | T177: 2nd
J178: =IF($D$6-1-L178+1-M178>=0,INDEX($H$155:$H$170, MATCH(TRUE, $H$155:$H$170<>"", 0)),OFFSET($F$128,0,$D$6-1)) -> 51.08037532 | K178: =(1000*J177/60)*($D$10*$O44*$D$9)/($H$11*$H$7) -> 2808.315169 | L178: 3 | M178: 0 | N178: 51.08037532 | O178: 2808.315169
G179: Vitesse en km/h intersection 3-4 | J179: =IF($D$6-1-L179+1-M179>=0,INDEX($K$155:$K$170, MATCH(TRUE, $K$155:$K$170<>"", 0)),OFFSET($F$128,0,$D$6-1)) -> 72.78105444 | K179: =(1000*J179/60)*($D$10*$O44*$D$9)/($H$11*$H$7) -> 4001.382879 | L179: 3 | M179: 1 | N179: 72.78105444 | O179: 4001.382879 | Q179: =(N179-N178)/2+N178 -> 61.93071488 | R179: =(O179-O178)/2+O178 -> 3404.849024 | T179: 3rd
J180: =IF($D$6-1-L180+1-M180>=0,INDEX($K$155:$K$170, MATCH(TRUE, $K$155:$K$170<>"", 0)),OFFSET($F$128,0,$D$6-1)) -> 72.78105444 | K180: =(1000*J179/60)*($D$10*$O45*$D$9)/($H$11*$H$7) -> 2847.80734 | L180: 4 | M180: 0 | N180: 72.78105444 | O180: 2847.80734
G181: Vitesse en km/h intersection 4-5 | J181: =IF($D$6-1-L181+1-M181>=0,INDEX($N$155:$N$170, MATCH(TRUE, $N$155:$N$170<>"", 0)),OFFSET($F$128,0,$D$6-1)) -> 101.062069 | K181: =(1000*J181/60)*($D$10*$O45*$D$9)/($H$11*$H$7) -> 3954.39863 | L181: 4 | M181: 1 | N181: 101.062069 | O181: 3954.39863 | Q181: =(N181-N180)/2+N180 -> 86.92156173 | R181: =(O181-O180)/2+O180 -> 3401.102985 | T181: 4th
C182: Calcul des vitesses de rotation moteur aux passages des rapports | J182: =IF($D$6-1-L182+1-M182>=0,INDEX($N$155:$N$170, MATCH(TRUE, $N$155:$N$170<>"", 0)),OFFSET($F$128,0,$D$6-1)) -> 101.062069 | K182: =(1000*J181/60)*($D$10*$O46*$D$9)/($H$11*$H$7) -> 2886.2375 | L182: 5 | M182: 0 | N182: 101.062069 | O182: 2886.2375
G183: Vitesse en km/h intersection 5-6 | J183: =IF($D$6-1-L183+1-M183>=0,INDEX($Q$155:$Q$170, MATCH(TRUE, $Q$155:$Q$170<>"", 0)),OFFSET($F$128,0,$D$6-1)) -> 137.0197406 | K183: =(1000*J183/60)*($D$10*$O46*$D$9)/($H$11*$H$7) -> 3913.154731 | L183: 5 | M183: 1 | N183: 137.0197406 | O183: 3913.154731 | Q183: =(N183-N182)/2+N182 -> 119.0409048 | R183: =(O183-O182)/2+O182 -> 3399.696116 | T183: 5th
J184: =IF($D$6-1-L184+1-M184>=0,INDEX($Q$155:$Q$170, MATCH(TRUE, $Q$155:$Q$170<>"", 0)),OFFSET($F$128,0,$D$6-1)) -> 137.0197406 | K184: =(1000*J183/60)*($D$10*$O47*$D$9)/($H$11*$H$7) -> 2918.887273 | L184: 6 | M184: 0 | N184: 137.0197406 | O184: 2918.887273
G185: Vitesse en km/h intersection 6-7 | J185: =IF($D$6-1-L185+1-M185>=0,INDEX($T$155:$T$170, MATCH(TRUE, $T$155:$T$170<>"", 0)),OFFSET($F$128,0,$D$6-1)) -> 220.6295483 | K185: =(1000*J185/60)*($D$10*$O47*$D$9)/($H$11*$H$7) -> 4700 | L185: 6 | M185: 1 | N185: 220.6295483 | O185: 4700 | Q185: =(N185-N184)/2+N184 -> 178.8246445 | R185: =(O185-O184)/2+O184 -> 3809.443637 | T185: 6th
J186: =IF($D$6-1-L186+1-M186>=0,INDEX($T$155:$T$170, MATCH(TRUE, $T$155:$T$170<>"", 0)),OFFSET($F$128,0,$D$6-1)) -> 220.6295483 | K186: =(1000*J185/60)*($D$10*$O48*$D$9)/($H$11*$H$7) -> 0 | L186: 7 | M186: 0
G187: Vitesse en km/h intersection 7-8 | J187: =IF($D$6-1-L187+1-M187>=0,INDEX($W$155:$W$170, MATCH(TRUE, $W$155:$W$170<>"", 0)),OFFSET($F$128,0,$D$6-1)) -> 220.6295483 | K187: =(1000*J187/60)*($D$10*$O48*$D$9)/($H$11*$H$7) -> 0 | L187: 7 | M187: 1 | Q187: =(N187-N186)/2+N186 -> 0 | R187: =(O187-O186)/2+O186 -> 0 | T187: 7th
J188: =IF($D$6-1-L188+1-M188>=0,INDEX($W$155:$W$170, MATCH(TRUE, $W$155:$W$170<>"", 0)),OFFSET($F$128,0,$D$6-1)) -> 220.6295483 | K188: =(1000*J187/60)*($D$10*$O49*$D$9)/($H$11*$H$7) -> 0 | L188: 8 | M188: 0
G189: Vitesse en km/h intersection 8-9 | J189: =IF($D$6-1-L189+1-M189>=0,INDEX($Z$155:$Z$170, MATCH(TRUE, $Z$155:$Z$170<>"", 0)),OFFSET($F$128,0,$D$6-1)) -> 220.6295483 | K189: =(1000*J189/60)*($D$10*$O49*$D$9)/($H$11*$H$7) -> 0 | L189: 8 | M189: 1 | Q189: 0 | R189: 0 | T189: 8th
J190: =IF($D$6-1-L190+1-M190>=0,INDEX($Z$155:$Z$170, MATCH(TRUE, $Z$155:$Z$170<>"", 0)),OFFSET($F$128,0,$D$6-1)) -> 220.6295483 | K190: =(1000*J189/60)*($D$10*$O50*$D$9)/($H$11*$H$7) -> 0 | L190: 9 | M190: 0
G191: Vitesse en km/h intersection 9-10 | J191: =IF($D$6-1-L191+1-M191>=0,INDEX($AC$155:$AC$170, MATCH(TRUE, $AC$155:$AC$170<>"", 0)),OFFSET($F$128,0,$D$6-1)) -> 220.6295483 | K191: =(1000*J191/60)*($D$10*$O50*$D$9)/($H$11*$H$7) -> 0 | L191: 9 | M191: 1 | Q191: 0 | R191: 0 | T191: 9th
J192: =IF($D$6-1-L192+1-M192>=0,INDEX($AC$155:$AC$170, MATCH(TRUE, $AC$155:$AC$170<>"", 0)),OFFSET($F$128,0,$D$6-1)) -> 220.6295483 | K192: =(1000*J191/60)*($D$10*$O51*$D$9)/($H$11*$H$7) -> 0 | L192: 10 | M192: 0
G193: Vitesse en km/h intersection 10-11 | J193: =IF($D$6-1-L193+1-M193>=0,INDEX($AF$155:$AF$170, MATCH(TRUE, $AF$155:$AF$170<>"", 0)),OFFSET($F$128,0,$D$6-1)) -> 220.6295483 | K193: =(1000*J193/60)*($D$10*$O51*$D$9)/($H$11*$H$7) -> 0 | L193: 10 | M193: 1 | Q193: 0 | R193: 0 | T193: 10th
J194: =IF($D$6-1-L194+1-M194>=0,INDEX($AF$155:$AF$170, MATCH(TRUE, $AF$155:$AF$170<>"", 0)),OFFSET($F$128,0,$D$6-1)) -> 220.6295483 | K194: =(1000*J193/60)*($D$10*$O52*$D$9)/($H$11*$H$7) -> 0 | L194: 11 | M194: 0
G195: Vitesse en km/h intersection 11-12 | J195: =IF($D$6-1-L195+1-M195>=0,INDEX($AI$155:$AI$170, MATCH(TRUE, $AI$155:$AI$170<>"", 0)),OFFSET($F$128,0,$D$6-1)) -> 220.6295483 | K195: =(1000*J195/60)*($D$10*$O52*$D$9)/($H$11*$H$7) -> 0 | L195: 11 | M195: 1 | Q195: 0 | R195: 0 | T195: 11th
J196: =IF($D$6-1-L196+1-M196>=0,INDEX($AI$155:$AI$170, MATCH(TRUE, $AI$155:$AI$170<>"", 0)),OFFSET($F$128,0,$D$6-1)) -> 220.6295483 | K196: =(1000*J195/60)*($D$10*$O53*$D$9)/($H$11*$H$7) -> 0 | L196: 12 | M196: 0
G197: Vitesse en km/h intersection 12-13 | J197: =IF($D$6-1-L197+1-M197>=0,INDEX($AL$155:$AL$170, MATCH(TRUE, $AL$155:$AL$170<>"", 0)),OFFSET($F$128,0,$D$6-1)) -> 220.6295483 | K197: =(1000*J197/60)*($D$10*$O53*$D$9)/($H$11*$H$7) -> 0 | L197: 12 | M197: 1 | Q197: 0 | R197: 0 | T197: 12th
J198: =IF($D$6-1-L198+1-M198>=0,INDEX($AL$155:$AL$170, MATCH(TRUE, $AL$155:$AL$170<>"", 0)),OFFSET($F$128,0,$D$6-1)) -> 220.6295483 | K198: =(1000*J197/60)*($D$10*$O54*$D$9)/($H$11*$H$7) -> 0 | L198: 13 | M198: 0
G199: Vitesse en km/h intersection 13-14 | J199: =IF($D$6-1-L199+1-M199>=0,INDEX($AO$155:$AO$170, MATCH(TRUE, $AO$155:$AO$170<>"", 0)),OFFSET($F$128,0,$D$6-1)) -> 220.6295483 | K199: =(1000*J199/60)*($D$10*$O54*$D$9)/($H$11*$H$7) -> 0 | L199: 13 | M199: 1 | Q199: 0 | R199: 0 | T199: 13th
J200: =IF($D$6-1-L200+1-M200>=0,INDEX($AO$155:$AO$170, MATCH(TRUE, $AO$155:$AO$170<>"", 0)),OFFSET($F$128,0,$D$6-1)) -> 220.6295483 | K200: =(1000*J199/60)*($D$10*$O55*$D$9)/($H$11*$H$7) -> 0 | L200: 14 | M200: 0
G201: Vitesse en km/h intersection 14-15 | J201: =IF($D$6-1-L201+1-M201>=0,INDEX($AR$155:$AR$170, MATCH(TRUE, $AR$155:$AR$170<>"", 0)),OFFSET($F$128,0,$D$6-1)) -> 220.6295483 | K201: =(1000*J201/60)*($D$10*$O55*$D$9)/($H$11*$H$7) -> 0 | L201: 14 | M201: 1 | Q201: 0 | R201: 0 | T201: 14th
J202: =IF($D$6-1-L202+1-M202>=0,INDEX($AR$155:$AR$170, MATCH(TRUE, $AR$155:$AR$170<>"", 0)),OFFSET($F$128,0,$D$6-1)) -> 220.6295483 | K202: =(1000*J201/60)*($D$10*$O56*$D$9)/($H$11*$H$7) -> 0 | L202: 15 | M202: 0
G203: Vitesse en km/h intersection 15-16 | J203: =IF($D$6-1-L203+1-M203>=0,INDEX($AU$155:$AU$170, MATCH(TRUE, $AU$155:$AU$170<>"", 0)),OFFSET($F$128,0,$D$6-1)) -> 220.6295483 | K203: =(1000*J203/60)*($D$10*$O56*$D$9)/($H$11*$H$7) -> 0 | L203: 15 | M203: 1 | Q203: 0 | R203: 0 | T203: 15th
J204: =IF($D$6-1-L204+1-M204>=0,INDEX($AU$155:$AU$170, MATCH(TRUE, $AU$155:$AU$170<>"", 0)),OFFSET($F$128,0,$D$6-1)) -> 220.6295483 | K204: =(1000*J203/60)*($D$10*$O57*$D$9)/($H$11*$H$7) -> 0 | L204: 16 | M204: 0
G205: Vitesse en km/h intersection 16-17 | J205: =IF($D$6-1-L205+1-M205>=0,INDEX($AX$155:$AX$170, MATCH(TRUE, $AX$155:$AX$170<>"", 0)),OFFSET($F$128,0,$D$6-1)) -> 220.6295483 | K205: =(1000*J205/60)*($D$10*$O57*$D$9)/($H$11*$H$7) -> 0 | L205: 16 | M205: 1 | Q205: 0 | R205: 0 | T205: 16th
J206: =IF($D$6-1-L206+1-M206>=0,INDEX($AX$155:$AX$170, MATCH(TRUE, $AX$155:$AX$170<>"", 0)),OFFSET($F$128,0,$D$6-1)) -> 220.6295483 | K206: =(1000*J205/60)*($D$10*$O58*$D$9)/($H$11*$H$7) -> 0 | L206: 17 | M206: 0
G207: Vitesse en km/h intersection 17-18 | J207: =IF($D$6-1-L207+1-M207>=0,INDEX($BA$155:$BA$170, MATCH(TRUE, $BA$155:$BA$170<>"", 0)),OFFSET($F$128,0,$D$6-1)) -> 220.6295483 | K207: =(1000*J207/60)*($D$10*$O58*$D$9)/($H$11*$H$7) -> 0 | L207: 17 | M207: 1 | Q207: 0 | R207: 0 | T207: 17th
J208: =IF($D$6-1-L208+1-M208>=0,INDEX($BA$155:$BA$170, MATCH(TRUE, $BA$155:$BA$170<>"", 0)),OFFSET($F$128,0,$D$6-1)) -> 220.6295483 | K208: =(1000*J207/60)*($D$10*$O59*$D$9)/($H$11*$H$7) -> 0 | L208: 18 | M208: 0
G209: Vitesse en km/h intersection 18-19 | J209: =IF($D$6-1-L209+1-M209>=0,INDEX($BD$155:$BD$170, MATCH(TRUE, $BD$155:$BD$170<>"", 0)),OFFSET($F$128,0,$D$6-1)) -> 220.6295483 | K209: =(1000*J209/60)*($D$10*$O59*$D$9)/($H$11*$H$7) -> 0 | L209: 18 | M209: 1 | Q209: 0 | R209: 0 | T209: 18th
J210: =IF($D$6-1-L210+1-M210>=0,INDEX($BD$155:$BD$170, MATCH(TRUE, $BD$155:$BD$170<>"", 0)),OFFSET($F$128,0,$D$6-1)) -> 220.6295483 | K210: =(1000*J209/60)*($D$10*$O60*$D$9)/($H$11*$H$7) -> 0 | L210: 19 | M210: 0
G211: Vitesse en km/h intersection 19-20 | J211: =IF($D$6-1-L211+1-M211>=0,INDEX($BG$155:$BG$170, MATCH(TRUE, $BG$155:$BG$170<>"", 0)),OFFSET($F$128,0,$D$6-1)) -> 220.6295483 | K211: =(1000*J211/60)*($D$10*$O60*$D$9)/($H$11*$H$7) -> 0 | L211: 19 | M211: 1 | Q211: 0 | R211: 0 | T211: 19th
J212: =IF($D$6-1-L212+1-M212>=0,INDEX($BG$155:$BG$170, MATCH(TRUE, $BG$155:$BG$170<>"", 0)),OFFSET($F$128,0,$D$6-1)) -> 220.6295483 | K212: =(1000*J211/60)*($D$10*$O61*$D$9)/($H$11*$H$7) -> 0 | L212: 20 | M212: 0
J213: =IF($D$6-1-L213+1-M213>=0,INDEX($BG$155:$BG$170, MATCH(TRUE, $BG$155:$BG$170<>"", 0)),OFFSET($F$128,0,$D$6-1)) -> 220.6295483 | K213: =H31 -> 4700 | L213: 20 | M213: 1 | Q213: =(N213-N212)/2+N212 -> 0 | R213: 0 | T213: 20th
D215: Vitesse en km/h | E215: Frottements en Newtons | G215: Intersection dernier rapport / frottements
J216: Vitesse Maxi | K216: RPM | L216: Traction
D217: 0 | E217: =(0.5*$D$22*$D$21*$D$20*(D217/3.6)^2)+$D$30 -> 156.96 | G217: =Intersectcomplex(OFFSET(D135,0,($D$6-1)*3),OFFSET(E135,0,($D$6-1)*3),OFFSET(D136,0,($D$6-1)*3),OFFSET(E136,0,($D$6-1)*3),frottements,TRUE) ->  | H217: =Intersectcomplex(OFFSET(D135,0,($D$6-1)*3),OFFSET(E135,0,($D$6-1)*3),OFFSET(D136,0,($D$6-1)*3),OFFSET(E136,0,($D$6-1)*3),frottements,FALSE) ->  | J217: =$J$218 -> 198.3767863 | K217: 0
D218: 5 | E218: 157.7748148 | J218: =INDEX(G217:G232,MATCH(TRUE,G217:G232<>"",0)) -> 198.3767863 | K218: =(1000*J218/60)*($D$10*OFFSET($O$42,$D$6-1,0)*$D$9)/($H$11*$H$7) -> 4225.956598 | L218: =INDEX(H217:H232,MATCH(TRUE,H217:H232<>"",0)) -> 1439.76633
D219: 10 | E219: 160.2192593
D220: 15 | E220: 164.2933333
D221: 20 | E221: 169.997037
D222: 25 | E222: 177.3303704
D223: 30 | E223: 186.2933333
D224: 35 | E224: 196.8859259
D225: 40 | E225: 209.1081481
D226: 45 | E226: 222.96
D227: 50 | E227: 238.4414815
D228: 55 | E228: 255.5525926
D229: 60 | E229: 274.2933333
D230: 65 | E230: 294.6637037 | G230: 198.3767863 | H230: 1439.76633
D231: 70 | E231: 316.6637037
D232: 75 | E232: 340.2933333
D233: 80 | E233: 365.5525926
D234: 85 | E234: 392.4414815
D235: 90 | E235: 420.96
... 202 more rows

Sheet Autres Graphes

Sheet Calculs de Vitesses
B2: Vitesse mini rotation moteur tr/min | C2: 500
B3: Vitesse maxi rotation moteur tr/min | C3: 4000
B4: Couple moteur | C4: 380
B5: Nombre de roues | C5: 4
B6: Rapports de boite de Transfert
B7: Vitesses courtes | C7: 2.488
B8: Vitesses longues | C8: 1
E9: Rapports Longs
B10: Rapports de ponts ou réduction finale | C10: 3.727
E11: Rapport sélectionné | F11: Rapports Longs | G11: Vitesse km/h | H11: Vitesse maxi km/h | I11: Couple maxi disponible | J11: Couple par roue, répartition uniforme | K11: Vitesse de rotation des roues
B12: Pneus
B13: diamètre (pouces) | C13: 16 | E13: AR | F13: 4.313 | G13: =$C$16*($C$2/$C$10)*$C$20*60/F13/1000 -> 4.500907179 | H13: =$C$16*($C$3/$C$10)*$C$20*60/F13/1000 -> 36.00725743 | I13: =$C$4*$C$8*$C$10*F13 -> 6108.32938 | J13: =I13/$C$5 -> 1527.082345 | K13: =$C$2/$C$8/$C$10/F13 -> 31.10506788
B14: largeur (mm) | C14: 275
B15: hauteur de flancs (% de largeur) | C15: 70 | E15: 1 | F15: 4.081 | G15: =$C$16*($C$2/$C$10)*$C$20*60/F15/1000 -> 4.756778403 | H15: =$C$16*($C$3/$C$10)*$C$20*60/F15/1000 -> 38.05422723 | I15: =$C$4*$C$8*$C$10*F15 -> 5779.75706 | J15: =I15/$C$5 -> 1444.939265 | K15: =$C$2/$C$8/$C$10/F15 -> 32.87335402
B16: Coefficient d'écrasement | C16: 0.97 | E16: 2 | F16: 2.294 | G16: =$C$16*($C$2/$C$10)*$C$20*60/F16/1000 -> 8.462254867 | H16: 67.69803893 | I16: =$C$4*$C$8*$C$10*F16 -> 3248.90044 | J16: 812.22511 | K16: =$C$2/$C$8/$C$10/F16 -> 58.48132422
E17: 3 | F17: 1.49 | G17: =$C$16*($C$2/$C$10)*$C$20*60/F17/1000 -> 13.02846488 | H17: 104.227719 | I17: =$C$4*$C$8*$C$10*F17 -> 2110.2274 | J17: 527.55685 | K17: =$C$2/$C$8/$C$10/F17 -> 90.03768978
B18: hauteur de flanc calculée (mm) | C18: =C14*C15/100 -> 192.5 | E18: 4 | F18: 1 | G18: =$C$16*($C$2/$C$10)*$C$20*60/F18/1000 -> 19.41241266 | H18: 155.2993013 | I18: =$C$4*$C$8*$C$10*F18 -> 1416.26 | J18: 354.065 | K18: =$C$2/$C$8/$C$10/F18 -> 134.1561578
B19: diamètre total calculé (mm) | C19: =C13*25.4+2*C18 -> 791.4 | E19: 5 | F19: 0.881 | G19: =$C$16*($C$2/$C$10)*$C$20*60/F19/1000 -> 22.03452062 | H19: 176.2761649 | I19: =$C$4*$C$8*$C$10*F19 -> 1247.72506 | J19: 311.931265 | K19: =$C$2/$C$8/$C$10/F19 -> 152.2771371
B20: circonférence calculée (m) | C20: =PI()*C19/1000 -> 2.486256426
E22: Les valeurs de rapports et de couple indiquées ici sont celles du Toyota HDJ80 avec les rapports de ponts version Europe (3.72:1)
B23: Les valeurs en vert sont modifiables
E25: Rapports Courts
E27: Rapport sélectionné | F27: Rapports Courts | G27: Vitesse km/h | H27: Vitesse maxi km/h | I27: Couple maxi disponible* | J27: Couple par roue, répartition uniforme | K27: Vitesse de rotation des roues en tr/m | L27: Vitesse de rotation en tr/s
E29: AR | F29: =F13*$C$7 -> 10.730744 | G29: =$C$16*($C$2/$C$10)*$C$20*60/$F29/1000 -> 1.809046294 | H29: =$C$16*($C$3/$C$10)*$C$20*60/$F29/1000 -> 14.47237035 | I29: =$C$4*$C$8*$C$10*F29 -> 15197.5235 | J29: =I29/$C$5 -> 3799.380874 | K29: =$C$2/$C$8/$C$10/F29 -> 12.50203693 | L29: =K29/60 -> 0.2083672822
E31: 1 | F31: =F15*$C$7 -> 10.153528 | G31: =$C$16*($C$2/$C$10)*$C$20*60/$F31/1000 -> 1.911888426 | H31: =$C$16*($C$3/$C$10)*$C$20*60/$F31/1000 -> 15.29510741 | I31: =$C$4*$C$8*$C$10*F31 -> 14380.03557 | J31: =I31/$C$5 -> 3595.008891 | K31: =$C$2/$C$8/$C$10/F31 -> 13.21276287 | L31: =K31/60 -> 0.2202127145
E32: 2 | F32: =F16*$C$7 -> 5.707472 | G32: 3.40122784 | H32: 27.20982272 | I32: =$C$4*$C$8*$C$10*F32 -> 8083.264295 | J32: 2020.816074 | K32: =$C$2/$C$8/$C$10/F32 -> 23.5053554 | L32: 0.3917559233
E33: 3 | F33: =F17*$C$7 -> 3.70712 | G33: 5.236521252 | H33: 41.89217002 | I33: =$C$4*$C$8*$C$10*F33 -> 5250.245771 | J33: 1312.561443 | K33: =$C$2/$C$8/$C$10/F33 -> 36.18878206 | L33: 0.6031463677
E34: 4 | F34: =F18*$C$7 -> 2.488 | G34: 7.802416666 | H34: 62.41933332 | I34: =$C$4*$C$8*$C$10*F34 -> 3523.65488 | J34: 880.91372 | K34: =$C$2/$C$8/$C$10/F34 -> 53.92128528 | L34: 0.8986880879
E35: 5 | F35: =F19*$C$7 -> 2.191928 | G35: 8.856318576 | H35: 70.85054861 | I35: =$C$4*$C$8*$C$10*F35 -> 3104.339949 | J35: 776.0849873 | K35: =$C$2/$C$8/$C$10/F35 -> 61.20463709 | L35: 1.020077285
